Workbook

Sheet Лист1
A2: Школа | B2: ГБОУ "Корсабашская школа-интернат" | E2: Отд./корп | H2: День | I2: 2025-09-05
A4: № п/п | B4: Наименование блюда | C4: Выход | D4: Пищевые вещества,г | G4: Эн.ц
C5: г | D5: Б | E5: Ж | F5: У | G5: Ккал
A6: 1 | B6: 2 | C6: 3 | D6: 4 | E6: 5 | F6: 6 | G6: 7
B7: Завтрак 1
A8: 189 | B8: Каша Дружба | C8: 250 | D8: 8,36 | E8: 11,56 | F8: 26,16 | G8: 196,60
A9: 382 | B9: Чай с лимоном и с сахаром | C9: 200 | D9: 0,06 | E9: 0,01 | F9: 7,30 | G9: 20,32
B10: Хлеб пшеничный | C10: 100 | D10: 7,60 | E10: 0,80 | F10: 48,60 | G10: 165,28
A11: 13 | B11: Масло сливочное с порциями | C11: 10 | D11: 0,05 | E11: 8,25 | F11: 0,08 | G11: 51,94
A12: 14 | B12: Сыр | C12: 20 | D12: 4,60 | E12: 5,80 | F12: 0,00 | G12: 50,00
B13: Итого завтрак | D13: =D8+D9+D10+D11+D12 -> 20.67 | E13: =E8+E9+E10+E11+E12 -> 26.42 | F13: 82.14 | G13: 484.14
B14: Обед
A15: 112 | B15: Салат из белокочанной капусты с | C15: 120 | D15: 1,91 | E15: 12,10 | F15: 11,05 | G15: 111,52
A16: 258 | B16: Рассольник ленинградский на курином бульене | C16: 300 | D16: 3,57 | E16: 9,75 | F16: 24,86 | G16: 142,63
A17: 51 | B17: Котлета куриная | C17: 120 | D17: 31,22 | E17: 16,50 | F17: 11,84 | G17: 223,39
A18: 505 | B18: Хлеб ржаной | C18: 90 | D18: 7,65 | E18: 2,70 | F18: 39,60 | G18: 150,00
B19: Макароны отварные | C19: 200 | D19: 7,13 | E19: 8,24 | F19: 47,58 | G19: 206,64
B20: Кондитерское изделие (печенье) | C20: 50 | D20: 0,80 | E20: 4,30 | F20: 37,15 | G20: 128,13
A21: 199 | B21: Компот из свежих плодов | C21: 180 | D21: 0,07 | E21: 0,07 | F21: 10,75 | G21: 29,56
B22: Итого обед | D22: =D15+D16+D17+D18+D19+D20+D21 -> 52.35 | E22: =E15+E16+E17+E18+E19+E20+E21 -> 53.66 | F22: 182.83 | G22: 991.87
B23: Полдник
A24: 442 | B24: Сок | C24: 200 | D24: 1 | E24: 0.2 | F24: 198 | G24: 86
A25: 33 | B25: Фрукты | C25: 200 | D25: 0.8 | E25: 0.8 | F25: 16.6 | G25: 80.4
A26: 451 | B26: Ватрушка с повидлом | C26: 70 | D26: 3,87 | E26: 2,30 | F26: 50,83 | G26: 168,60
B27: Итого полдник | D27: =D24+D25+D26 -> 5.67 | E27: =E24+E25+E26 -> 3.3 | F27: 265.43 | G27: 335
B28: Ужин
A29: 131 | B29: Капуста тушеная | C29: 200 | D29: 5.11 | E29: 8.3 | F29: 143.64 | G29: 153.22
A30: 267 | B30: Рыба с овощами | C30: 120 | D30: 0.3 | E30: 4.9 | F30: 1.7 | G30: 51.9
B31: Хлеб с маслом
A32: 213 | B32: Яйцо | C32: 40 | D32: 5.1 | E32: 4.6 | F32: 0.3 | G32: 63
B33: Хлеб пшеничный | C33: 100 | D33: 7.7 | E33: 2.4 | F33: 53.4 | G33: 254
A34: 13 | B34: Масло | C34: 10 | D34: 0.1 | E34: 8.3 | F34: 0.1 | G34: 75
B35: Булочка, обогащенная микроэлементами | C35: 50 | D35: 5.75 | E35: 4.71 | F35: 13.32 | G35: 183.5
B36: Итого ужин | D36: =SUM(D29:D35) -> 24.06 | E36: =SUM(E29:E35) -> 33.21 | F36: =SUM(F29:F35) -> 212.46 | G36: =SUM(G29:G35) -> 780.62
B37: 2-ой ужин
A38: 435 | B38: Кисломолочка (ряженка) | C38: 200 | D38: 6 | E38: 2 | F38: 8.4 | G38: 80
A39: 700 | B39: Кондитерка(вафли) | C39: 30 | D39: 0.8 | E39: 1 | F39: 23.2 | G39: 106.2
B40: Итого 2 -ой ужин | D40: =SUM(D38:D39) -> 6.8 | E40: 3 | F40: 31.6 | G40: 186.2
B41: ВСЕГО за день | D41: =D13+D22+D27+D36+D40 -> 109.55 | E41: =E13+E22+E27+E36+E40 -> 119.59 | F41: =F13+F22+F27+F36+F40 -> 774.46 | G41: =G13+G22+G27+G36+G40 -> 2777.83
